bitfinex/quotes_ETHUSD_20260107
["timestamp","ask_amount","ask_price","bid_price","bid_amount"]
[1767798370592,1.37820359,3176.5,3174.5,0.818]
[1767798370741,2.20020359,3176.5,3174.5,0.818]
[1767798370948,3.48601316,3176.4,3174.5,0.818]
[1767798371171,3.51597623,3176.3,3174.5,0.818]
[1767798371979,0.822,3176.2,3174.5,0.818]
[1767798372175,3.48601316,3176.0,3173.3,3.48634674]
[1767798372376,3.48601316,3175.8,3173.3,0.818]
[1767798372563,3.48601316,3175.6,3173.3,0.818]
[1767798372887,4.33797623,3175.5,3172.1,3.48634674]
[1767798373094,3.49462557,3174.2,3171.5,3.48634674]
[1767798373256,3.49462557,3174.2,3171.6,0.818]
[1767798373452,0.822,3174.1,3171.7,3.15286698]
[1767798373646,0.822,3174.1,3172.9,0.002]
[1767798373877,0.822,3174.0,3172.9,0.002]
[1767798374188,3.97269787,3173.9,3172.9,0.002]
[1767798374409,0.00861241,3174.2,3172.9,0.002]
[1767798374698,3.15903847,3174.2,3172.9,0.002]
[1767798375603,0.00861241,3174.2,3172.9,0.002]
[1767798375917,3.15903385,3174.2,3172.9,0.002]
[1767798376065,0.00861241,3174.2,3172.9,0.002]
[1767798376268,3.42842319,3175.5,3173.0,3.7458693]
[1767798376575,3.14914435,3175.5,3173.0,3.7458693]
[1767798376957,6.2982887,3175.5,3173.0,3.7458693]
[1767798377156,0.02366425,3175.4,3173.0,4.30434674]
[1767798377383,5.25512289,3175.3,3173.1,0.49369246]
[1767798377591,3.50967741,3175.2,3173.0,0.818]
[1767798377761,3.48601316,3175.2,3173.0,0.818]
[1767798377961,0.822,3175.1,3173.0,0.818]
[1767798378162,6.29921258,3175.0,3173.0,0.818]
[1767798378363,7.12121258,3175.0,3173.0,0.818]
[1767798378594,0.60806757,3174.9,3173.0,0.818]
[1767798379299,3.14960629,3175.0,3173.0,0.818]
[1767798379463,0.822,3175.3,3173.0,7.45593684]
[1767798379663,3.50967741,3175.2,3172.9,0.002]
[1767798380092,0.822,3175.1,3172.9,0.002]
[1767798380262,9.47248312,3175.0,3172.9,0.002]
[1767798380465,3.48601316,3174.8,3172.9,0.002]
[1767798380881,0.94724831,3174.9,3172.9,0.002]
[1767798381360,3.14930872,3175.3,3172.9,3.7478693]
[1767798381565,0.822,3175.2,3172.9,3.7478693]
[1767798381777,0.84566425,3175.2,3172.9,3.7478693]
[1767798381987,4.33167741,3175.2,3172.9,0.002]
[1767798382489,9.4485213,3175.1,3172.9,0.002]
[1767798382692,2.14148412,3175.0,3173.0,0.31537737]
[1767798382876,0.822,3174.9,3172.9,0.002]
[1767798383073,1.29581987,3175.0,3172.9,0.002]
[1767798383274,4.33167741,3174.9,3172.9,0.002]
[1767798383486,1.29581987,3175.0,3172.9,0.002]
[1767798383679,6.2990142,3175.1,3172.9,0.002]
[1767798383886,0.822,3175.0,3172.9,3.48834674]
[1767798384088,3.14920954,3175.4,3173.0,3.48634674]
[1767798384402,7.12050483,3175.4,3173.2,3.7458693]
[1767798384599,6.29850483,3175.4,3173.3,3.9692936]
[1767798384799,0.822,3175.3,3173.4,0.77151629]
[1767798385362,7.27695663,3175.4,3173.4,0.77151629]
[1767798385569,3.14871375,3175.9,3173.5,3.7458693]
[1767798385763,6.2983037,3176.0,3173.5,3.7458693]
[1767798386199,3.1496146,3176.0,3173.5,3.7458693]
[1767798386364,0.001,3176.0,3173.5,3.7458693]
[1767798386731,0.001,3176.0,3173.7,3.7458693]
[1767798386932,0.001,3176.0,3174.3,3.48634674]
[1767798387118,0.001,3176.0,3174.4,0.818]
[1767798388416,3.48701316,3176.0,3173.7,3.48634674]
[1767798388731,3.48601316,3175.9,3173.8,0.818]
[1767798388895,1.17306774,3175.8,3173.8,0.818]
[1767798389294,0.35106774,3175.8,3173.8,0.818]
[1767798389604,0.822,3175.9,3173.9,0.25952256]
[1767798389802,0.001,3176.0,3173.9,3.7458693]
[1767798390119,0.001,3176.0,3174.0,3.7458693]
[1767798390325,0.001,3176.0,3174.2,0.25952256]
[1767798390522,0.001,3176.0,3174.3,0.34100219]
[1767798390702,0.001,3176.0,3174.0,3.48634674]
[1767798390904,0.001,3176.0,3174.1,0.818]
[1767798391625,4.30901316,3176.0,3174.1,0.818]
[1767798391810,3.56045464,3175.9,3174.1,0.818]
[1767798392011,0.822,3175.8,3174.1,0.818]
[1767798392214,3.14901121,3175.6,3174.1,0.818]
[1767798392426,3.14881289,3175.8,3174.1,0.818]
[1767798392614,0.823,3176.0,3174.1,0.818]
[1767798392615,3.14875957,3175.9,3174.1,0.818]
[1767798392935,0.001,3176.0,3174.2,3.63769372]
[1767798393425,3.14963979,3176.0,3174.2,3.63769372]
[1767798393598,3.14963979,3176.0,3174.3,0.7606176]
[1767798394313,0.001,3176.0,3174.4,3.15020161]
[1767798394624,0.001,3176.0,3174.5,0.25952256]
[1767798394932,0.001,3176.0,3174.4,0.25952256]
[1767798395700,0.001,3176.0,3174.4,3.63769372]
[1767798395929,3.53679039,3177.8,3174.6,3.63769372]
[1767798396230,0.822,3177.7,3174.6,3.63769372]
[1767798396438,3.1470292,3177.6,3174.8,3.63769372]
[1767798396728,0.822,3178.0,3175.0,3.63769372]
[1767798396929,12.97520472,3178.5,3175.0,3.63769372]
[1767798397136,2.11952047,3178.4,3175.2,3.63769372]
[1767798397307,0.822,3178.3,3175.2,3.63769372]
[1767798397510,0.02366425,3178.2,3175.4,3.63769372]
[1767798397709,3.56045464,3178.2,3175.6,0.25952256]
[1767798398109,3.56045464,3178.2,3175.5,0.818]
[1767798398315,3.53679039,3177.8,3175.3,0.818]
[1767798398535,0.84566425,3177.7,3175.3,0.818]
[1767798398901,3.53679039,3177.8,3175.3,0.818]
[1767798398902,0.822,3177.6,3175.4,0.25952256]
[1767798399099,3.53679039,3177.8,3175.4,3.63769372]
[1767798399330,0.001,3175.7,3175.4,3.63769372]
[1767798399529,3.53679039,3177.8,3175.6,0.25952256]
[1767798399839,3.5848068,3178.1,3175.6,3.63769372]
[1767798400044,7.55336814,3178.1,3175.6,3.63769372]
[1767798400213,6.73136814,3178.1,3175.6,3.63769372]
[1767798400419,7.55336814,3178.1,3175.8,0.25952256]
[1767798400615,0.02366425,3178.0,3175.9,0.99355178]
[1767798400821,3.56045464,3178.0,3175.6,0.25952256]
[1767798401019,3.56045464,3178.0,3175.6,3.40853297]
[1767798401228,0.821,3177.9,3175.6,3.40853297]
[1767798401723,3.53679039,3178.0,3175.6,6.55754418]
[1767798401917,3.53679039,3178.0,3175.9,0.25952256]
[1767798402121,0.821,3178.0,3176.0,1.18076937]
[1767798402340,3.14645062,3178.2,3176.1,0.25952256]
[1767798402542,3.14645062,3178.2,3176.2,6.29683268]
[1767798402840,6.29290124,3178.2,3176.2,3.14841634]
[1767798403031,6.29290124,3178.2,3176.2,6.5265875]
[1767798403232,7.00429136,3178.2,3176.3,0.67861101]
[1767798403438,3.53679039,3178.6,3176.4,3.63769372]
[1767798403613,3.53679039,3179.2,3176.4,3.63769372]
[1767798403807,3.53679039,3179.0,3176.5,1.07652256]
[1767798404022,3.53679039,3178.8,3176.3,0.67861101]
[1767798404353,12.5813858,3179.3,3176.4,0.817]
[1767798404354,3.53679039,3178.6,3176.4,0.817]
[1767798404556,9.46207858,3178.5,3176.4,0.817]
[1767798404847,3.53679039,3178.4,3176.4,0.817]
[1767798405022,4.38145464,3178.4,3176.4,0.817]
[1767798405228,4.38145464,3178.4,3175.1,3.37817116]
[1767798405537,3.53679039,3178.2,3175.9,0.817]
[1767798405731,3.53679039,3178.0,3175.9,0.817]
[1767798405943,4.35779039,3177.9,3175.9,0.817]
[1767798406248,0.821,3177.9,3175.9,4.19517116]
[1767798406434,6.29366228,3177.8,3175.9,4.19517116]
[1767798406619,1.55082946,3178.3,3176.1,0.25952256]
[1767798406825,0.821,3178.2,3176.1,3.63769372]
[1767798407007,7.1134742,3178.4,3176.1,3.63769372]
[1767798407415,3.56045464,3178.3,3176.1,3.63769372]
[1767798407838,0.821,3178.2,3176.1,3.63769372]
[1767798408036,3.56045464,3178.3,3176.0,0.41951712]
[1767798408242,2.12091659,3178.2,3176.0,0.41951712]
[1767798408446,6.29306818,3178.1,3176.1,3.14851547]
[1767798408621,2.12091659,3178.2,3176.1,3.14851547]
[1767798408827,3.14647671,3178.2,3176.2,0.25952256]
[1767798409027,6.68255829,3178.9,3176.2,3.63769372]
[1767798409332,10.25852357,3178.8,3176.2,3.63769372]
[1767798409520,3.56045464,3178.7,3176.2,3.63769372]
[1767798409948,3.56045464,3178.7,3176.0,0.41951712]
[1767798410147,3.56045464,3178.7,3176.0,0.25952256]
[1767798410726,3.53679039,3178.5,3176.0,0.25952256]
[1767798411034,3.53679039,3178.3,3176.0,3.1486146]
[1767798411235,3.53679039,3178.3,3176.1,3.37817116]
[1767798411435,0.001,3178.5,3176.2,3.63769372]
[1767798411637,0.001,3178.5,3176.4,3.63769372]
[1767798412242,3.53779039,3178.5,3176.5,0.817]
[1767798412632,6.2924742,3178.4,3176.5,0.817]
[1767798412846,3.53679039,3178.3,3176.6,0.817]
[1767798413143,4.35779039,3178.2,3176.4,0.817]
[1767798413348,0.46180971,3178.1,3176.4,0.817]
[1767798413548,0.43814546,3178.1,3176.4,0.817]
[1767798413933,3.53679039,3178.2,3176.5,0.25952256]
[1767798414247,6.2924742,3178.4,3176.5,0.25952256]
[1767798414556,0.001,3178.5,3176.6,0.16]
[1767798414756,0.001,3178.5,3176.8,9.67381456]
[1767798414928,0.001,3178.5,3176.9,3.63769372]
[1767798415126,0.001,3178.5,3177.1,0.25952256]
[1767798415469,0.001,3178.5,3177.3,0.25952256]
[1767798416126,0.821,3179.9,3177.5,3.37817116]
[1767798416323,3.14465408,3180.0,3177.9,0.25952256]
[1767798416560,0.001,3180.1,3178.1,0.25952256]
[1767798416769,0.001,3180.1,3178.3,0.25952256]
[1767798416970,0.001,3180.1,3178.5,0.25952256]
[1767798417183,0.001,3180.1,3178.4,0.99305639]
[1767798417338,0.001,3180.1,3178.5,0.817]
[1767798417756,4.38245464,3180.1,3176.9,3.14768167]
[1767798417958,4.38245464,3180.1,3177.7,0.25952256]
[1767798417959,3.53679039,3179.9,3177.7,0.25952256]
[1767798418175,3.56045464,3179.8,3177.1,0.16]
[1767798418345,3.56045464,3179.8,3177.2,0.817]
[1767798418541,3.89283585,3179.7,3177.7,0.25952256]
[1767798418736,3.89283585,3179.7,3177.9,0.25952256]
[1767798418937,3.14556718,3180.1,3178.1,0.25952256]
[1767798419249,3.14556718,3180.1,3178.0,0.817]
[1767798419250,3.56045464,3180.0,3178.0,0.817]
[1767798419449,3.53679039,3180.0,3178.0,0.817]
[1767798419666,3.56045464,3179.9,3178.1,0.817]
[1767798420377,3.53679039,3179.7,3177.3,0.43551712]
[1767798420669,3.53679039,3179.5,3177.4,0.817]
[1767798420869,3.17815711,3179.3,3176.9,0.25952256]
[1767798421074,0.02366425,3179.2,3177.3,0.817]
[1767798421375,3.17815711,3179.3,3176.9,0.25952256]
[1767798421580,3.17815711,3179.3,3175.7,3.14888964]
[1767798421581,3.17815711,3179.1,3177.0,1.49554436]
[1767798421774,3.34028253,3178.9,3177.1,0.817]
[1767798421979,3.34028253,3178.9,3177.2,3.14735892]
[1767798422173,1.26138997,3179.2,3177.2,0.25952256]
[1767798422337,3.36394678,3179.2,3176.8,3.14777936]
[1767798422542,3.34028253,3179.2,3177.0,0.25952256]
[1767798422756,6.29128656,3179.0,3177.1,3.14744838]
[1767798423060,3.34028253,3178.9,3177.0,0.25952256]
[1767798423378,3.34028253,3178.9,3177.0,0.817]
[1767798423670,3.34028253,3178.7,3176.7,0.817]
[1767798423873,3.36394678,3178.7,3176.8,0.817]
[1767798424034,3.36394678,3178.7,3175.9,0.002]
[1767798424035,3.36394678,3178.7,3176.5,0.817]
[1767798424240,3.36394678,3178.7,3175.9,0.002]
[1767798424445,3.34028253,3178.7,3176.0,0.817]
[1767798424641,3.34028253,3178.5,3176.1,1.21376955]
[1767798424875,3.34028253,3178.1,3176.1,0.817]
[1767798425274,3.34028253,3178.1,3176.1,3.96549212]
[1767798425481,3.34028253,3178.1,3176.1,3.96550419]
[1767798425676,0.001,3178.4,3176.2,3.40098489]
[1767798425979,0.001,3178.4,3176.3,3.40098489]
[1767798425980,3.14725214,3178.4,3176.3,3.40098489]
[1767798426176,3.14725214,3178.4,3176.4,0.61562105]
[1767798426359,3.14723853,3178.4,3176.6,0.25952256]
[1767798426677,0.001,3178.4,3176.6,0.25952256]
[1767798426886,0.001,3178.4,3176.6,3.40750319]
[1767798427189,0.001,3178.4,3176.8,0.25952256]
[1767798427344,0.001,3178.4,3176.9,0.36605075]
[1767798427750,0.001,3178.4,3176.9,0.817]
[1767798428086,3.34128253,3178.4,3176.4,0.35609849]
[1767798428270,3.34128253,3178.4,3176.0,3.40098489]
[1767798428271,3.34128253,3178.4,3176.0,0.817]
[1767798428477,3.34128253,3178.4,3174.8,3.40098489]
[1767798428782,3.34028253,3177.2,3175.2,0.817]
[1767798429087,12.58930536,3177.3,3175.2,0.817]
[1767798429088,3.34028253,3177.0,3175.2,0.817]
[1767798430346,0.821,3176.9,3175.2,0.817]
[1767798430547,3.34028253,3177.0,3175.2,0.817]
[1767798430769,3.34028253,3176.6,3173.5,3.40098489]
[1767798430972,1.27840449,3176.5,3174.4,3.15013033]
[1767798431181,1.27840449,3176.5,3173.9,4.21798489]
[1767798431347,3.34028253,3176.4,3173.6,0.16]
[1767798431544,3.34028253,3176.4,3173.9,3.15067756]
[1767798431745,3.34028253,3176.4,3173.7,0.817]
[1767798431970,0.4618687,3176.3,3173.7,0.817]
[1767798432167,0.4618687,3176.3,3173.7,7.36883959]
[1767798432477,1.2828687,3176.3,3174.2,3.15039312]
[1767798432683,0.4618687,3176.3,3173.7,4.21798489]
[1767798432868,0.4618687,3176.3,3173.9,3.66050745]
[1767798432869,3.14832133,3176.3,3173.9,3.66050745]
[1767798433071,6.29664266,3176.3,3173.9,3.66050745]
[1767798433278,9.63692519,3176.3,3173.9,3.66050745]
[1767798433582,9.63692519,3176.3,3174.0,0.817]
[1767798433983,12.78524652,3176.3,3174.0,0.817]
[1767798434285,5.43980718,3176.2,3174.1,0.70727331]
[1767798434981,3.14851547,3176.1,3174.2,3.1504001]
[1767798435186,6.29703094,3176.1,3174.2,3.1504001]
[1767798435384,6.29703094,3176.1,3174.1,3.85773767]
[1767798435887,6.29703094,3176.1,3174.1,0.44775075]
[1767798436065,0.71045027,3176.0,3174.2,0.817]
[1767798436981,3.14871375,3175.9,3174.2,0.817]
[1767798437360,3.34028253,3175.8,3174.4,0.002]
[1767798437564,4.16128253,3175.8,3174.4,0.002]
[1767798438162,3.34028253,3175.8,3174.4,0.002]
[1767798438361,2.09952465,3175.7,3174.4,0.002]
[1767798438597,3.148408,3176.3,3174.4,0.002]
[1767798438888,0.821,3176.2,3174.4,0.002]
[1767798439085,3.34028253,3176.4,3174.4,0.002]
[1767798439288,6.48851379,3176.4,3174.4,0.26152256]
[1767798439490,0.02366425,3176.3,3174.5,0.36625075]
[1767798439697,0.02366425,3176.2,3174.6,0.817]
[1767798439903,9.63674505,3176.4,3174.6,0.817]
[1767798440109,3.36394678,3176.3,3174.5,0.36625075]
[1767798440276,4.16128253,3176.3,3174.4,0.002]
[1767798440670,4.18494678,3176.3,3174.5,0.817]
[1767798440864,4.16128253,3176.3,3174.5,0.817]
[1767798441060,3.34028253,3177.0,3174.6,3.40098489]
[1767798441375,3.34028253,3177.0,3174.7,3.66050745]
[1767798441587,4.30381568,3177.0,3174.9,3.66050745]
[1767798441968,0.96353315,3177.0,3174.9,3.66050745]
[1767798442269,6.48750982,3177.4,3174.9,3.66050745]
[1767798442578,7.30850982,3177.4,3174.9,3.66050745]
[1767798443194,10.45574023,3177.4,3175.2,0.25952256]
[1767798443396,10.45574023,3177.4,3175.4,0.25952256]
[1767798443397,6.48750982,3177.4,3175.4,0.25952256]
[1767798443607,9.63474023,3177.4,3175.4,0.25952256]
[1767798444492,6.48750982,3177.4,3175.4,0.25952256]
[1767798444677,3.34028253,3177.3,3175.4,0.25952256]
[1767798444860,3.36394678,3177.2,3175.1,0.25952256]
[1767798445065,0.821,3177.1,3175.2,0.817]
[1767798445308,3.34028253,3177.2,3175.4,0.25952256]
[1767798445514,6.48771156,3177.2,3175.4,0.25952256]
[1767798445680,3.34028253,3177.2,3175.4,0.25952256]
[1767798445875,3.34028253,3177.2,3175.3,6.29861744]
[1767798445876,0.02366425,3177.1,3175.5,0.655814]
[1767798446082,6.48770949,3177.2,3175.3,0.25952256]
[1767798446993,3.36394678,3177.1,3175.1,3.40098489]
[1767798447213,3.14762354,3177.0,3175.2,0.817]
[1767798447399,9.63552961,3177.0,3175.2,0.817]
[1767798447833,3.36394678,3176.9,3174.6,3.66050745]
[1767798448039,0.96591939,3176.8,3174.9,0.25952256]
[1767798448194,4.30620192,3176.8,3175.1,3.14944649]
[1767798448388,0.96591939,3176.8,3175.0,3.14955413]
[1767798448591,0.96591939,3176.8,3174.9,3.66050745]
[1767798448904,3.34028253,3176.6,3174.9,0.817]
[1767798449098,0.33402825,3176.5,3174.9,0.817]
[1767798449313,9.63691697,3176.3,3175.0,0.817]
[1767798449524,3.1482426,3176.4,3175.0,0.817]
[1767798449831,7.45406153,3176.8,3175.0,0.817]
[1767798450485,4.30620192,3176.8,3175.0,0.817]
[1767798451051,0.001,3176.9,3175.1,0.25952256]
[1767798451197,0.001,3176.9,3175.2,3.14940791]
[1767798451840,0.001,3176.9,3175.2,6.15044554]
[1767798452501,0.001,3176.9,3175.3,0.25952256]
[1767798453441,2.99605537,3176.9,3174.7,3.00303763]
[1767798453600,2.99505537,3176.7,3174.8,1.11730376]
[1767798453794,2.99505537,3176.7,3175.1,3.14947619]
[1767798454035,0.30197196,3176.8,3175.0,3.14954857]
[1767798454234,0.001,3176.9,3175.2,3.26056019]
[1767798454441,0.001,3176.9,3175.3,3.14927643]
[1767798454747,0.001,3176.9,3175.4,0.817]
[1767798455546,0.001,3176.9,3175.5,3.14911037]
[1767798455760,0.001,3176.9,3175.4,3.96616498]
[1767798455942,0.001,3176.9,3175.5,0.3966165]
[1767798456150,0.001,3176.9,3175.4,3.96618593]
[1767798456950,0.001,3176.9,3175.3,3.14928706]
[1767798457270,0.001,3176.9,3175.2,3.00103763]
[1767798457566,0.001,3176.9,3175.4,0.817]
[1767798458279,0.001,3176.9,3175.5,3.00103763]
[1767798458568,0.001,3176.9,3175.6,0.38180376]
[1767798459231,0.001,3176.9,3175.4,0.817]
[1767798459431,0.001,3176.9,3175.1,0.25952256]
[1767798459638,0.001,3176.9,3175.2,3.96638738]
[1767798460163,0.001,3176.9,3175.3,3.00103763]
[1767798460375,0.001,3176.9,3175.4,3.26056019]
[1767798460667,0.001,3176.9,3175.6,3.26056019]
[1767798461177,2.99605537,3178.4,3176.4,3.00103763]
[1767798461330,9.28856063,3178.4,3176.5,1.07652256]
[1767798461534,9.28856063,3178.4,3176.5,4.22462448]
[1767798461830,0.001,3178.4,3176.7,3.26056019]
[1767798462937,6.14230063,3178.4,3176.8,0.817]
[1767798463128,0.001,3178.4,3176.8,0.817]
[1767798463331,3.14725896,3178.4,3176.8,0.817]
[1767798463565,3.14725896,3178.4,3176.6,3.72360384]
[1767798463873,0.001,3178.4,3176.9,0.817]
[1767798464077,0.001,3178.1,3176.9,0.817]
[1767798464834,0.001,3178.1,3177.0,0.817]
[1767798465236,0.001,3178.1,3177.1,0.817]
[1767798465540,0.001,3178.1,3176.2,3.14832568]
[1767798465541,0.001,3178.1,3177.2,0.817]
[1767798465969,0.001,3178.1,3177.2,3.96438022]
[1767798466274,0.001,3178.1,3177.3,0.71118335]
[1767798466491,0.001,3178.1,3177.4,0.817]
[1767798466672,0.001,3178.1,3177.5,0.817]
[1767798467079,2.99505537,3179.1,3177.5,0.817]
[1767798467281,9.28615779,3179.1,3177.5,0.817]
[1767798467575,3.01871962,3179.0,3177.6,0.817]
[1767798467783,2.99505537,3178.8,3177.6,0.817]
[1767798468105,2.99505537,3178.8,3176.7,3.00103763]
[1767798468403,2.99505537,3178.6,3176.8,0.817]
[1767798468569,2.99505537,3178.4,3176.8,0.817]
[1767798469010,2.99505537,3178.2,3176.8,0.817]
[1767798469665,6.14152652,3178.2,3176.3,6.29663444]
[1767798469868,2.99505537,3178.1,3176.4,1.07652256]
[1767798470092,2.99505537,3178.1,3176.5,0.817]
[1767798470395,3.63287227,3178.0,3176.0,3.14857077]
[1767798470601,3.01871962,3178.0,3176.1,0.817]
[1767798470765,3.01871962,3178.0,3176.2,0.817]
[1767798471165,3.01871962,3178.0,3175.8,3.14879253]
[1767798471380,3.01871962,3178.0,3175.6,3.00103763]
[1767798471696,2.99505537,3177.8,3175.7,1.14970937]
[1767798471869,6.14208457,3177.6,3175.8,3.14881289]
[1767798472314,2.99505537,3177.5,3175.7,0.33270937]
[1767798472479,2.99505537,3177.3,3175.8,0.817]
[1767798472678,3.37666091,3177.3,3175.8,0.817]
[1767798472880,3.37666091,3177.3,3174.6,6.15100343]
[1767798473095,3.37666091,3177.3,3174.4,0.002]
[1767798473096,0.24699095,3178.3,3175.9,3.00103763]
[1767798473299,0.24699095,3178.3,3175.8,6.29762578]
[1767798473300,2.99505537,3179.0,3176.6,3.00103763]
[1767798473506,2.99505537,3178.6,3176.7,0.817]
[1767798473776,6.14139146,3178.3,3176.7,0.817]
[1767798474102,2.99505537,3178.3,3176.7,0.817]
[1767798474480,2.99505537,3178.2,3176.3,0.817]
[1767798475074,2.99505537,3178.2,3176.2,0.817]
[1767798475905,6.96258946,3178.1,3176.9,0.002]
[1767798476075,2.99505537,3178.0,3176.9,0.002]
[1767798477175,2.99505537,3177.9,3176.5,0.002]
[1767798477971,2.99505537,3177.7,3176.5,0.002]
[1767798478375,2.99505537,3177.2,3175.3,0.002]
[1767798478576,2.99505537,3177.0,3175.3,0.002]
[1767798478876,2.99505537,3176.8,3175.3,0.002]
[1767798480018,2.99505537,3176.6,3175.3,0.002]
[1767798480189,2.99505537,3176.4,3175.3,0.002]
[1767798480508,0.821,3176.6,3175.3,0.002]
[1767798481311,3.07689508,3176.5,3175.3,0.002]
[1767798481915,3.9692181,3176.4,3175.3,0.002]
[1767798482120,6.2250499,3176.5,3175.3,0.002]
[1767798482447,0.821,3176.3,3175.3,0.002]
[1767798482627,6.2250199,3176.5,3175.3,0.002]
[1767798482826,0.38160554,3176.9,3175.3,0.002]
[1767798483027,0.821,3176.8,3175.3,0.002]
[1767798483226,3.66038054,3176.8,3175.3,0.002]
[1767798483430,2.83938054,3176.8,3175.3,0.002]
[1767798483630,6.4,3177.4,3175.3,3.01778618]
[1767798483631,0.821,3177.0,3175.3,3.01778618]
[1767798483835,2.83938054,3176.9,3175.3,0.002]
[1767798484044,2.83938054,3176.7,3175.3,0.002]
[1767798484245,2.83938054,3176.3,3174.7,0.002]
[1767798484451,2.83938054,3176.1,3174.7,0.002]
[1767798486245,2.83938054,3175.9,3174.7,0.002]
[1767798488212,2.83938054,3175.9,3174.4,0.002]
[1767798488377,2.83938054,3175.7,3174.4,0.002]
[1767798488575,4.88896246,3175.6,3174.4,0.002]
[1767798489377,2.83938054,3175.5,3174.0,0.002]
[1767798489943,2.83938054,3175.5,3173.1,0.002]
[1767798490148,2.83938054,3175.3,3173.1,0.002]
[1767798490356,12.60988996,3175.2,3173.2,0.30397862]
[1767798490564,2.83938054,3175.1,3174.4,0.002]
[1767798490766,2.83938054,3175.1,3173.2,0.30397862]
[1767798490978,3.14922204,3175.4,3173.3,3.01578618]
[1767798491192,9.13802467,3175.8,3173.9,3.01578618]
[1767798491474,2.83938054,3175.7,3174.0,0.30157862]
[1767798491684,2.83938054,3175.7,3173.5,3.01578618]
[1767798492191,0.822,3175.6,3173.6,3.27530874]
[1767798492354,0.823,3175.8,3173.8,3.27530874]
[1767798492549,0.001,3175.8,3173.8,3.27530874]
[1767798492754,0.823,3175.8,3173.8,3.27530874]
[1767798492989,0.823,3175.8,3174.0,3.27530874]
[1767798492990,3.97181858,3175.8,3174.0,3.27530874]
[1767798493284,2.83938054,3175.7,3174.0,3.01578618]
[1767798493593,2.83938054,3175.7,3173.9,1.2727998]
[1767798493756,2.83938054,3175.7,3173.8,0.817]
[1767798494086,2.83938054,3175.7,3173.5,3.01578618]
[1767798494471,2.83938054,3175.5,3173.5,3.01578618]
[1767798494670,2.83938054,3175.5,3173.5,6.1668785]
[1767798494984,2.83938054,3175.5,3173.5,3.01578618]
[1767798495179,10.26903363,3175.6,3173.6,0.61669557]
[1767798495180,2.83938054,3175.4,3173.6,0.61669557]
[1767798495736,2.83938054,3175.4,3173.3,3.96822046]
[1767798495885,6.29802242,3175.6,3173.6,3.01578618]
[1767798496082,3.66138054,3175.5,3173.6,3.01578618]
[1767798496486,3.14920954,3175.4,3173.6,6.16669666]
[1767798496684,6.81050032,3175.5,3173.7,3.94756398]
[1767798496886,9.9596201,3175.5,3173.7,3.94756398]
[1767798497778,2.83938054,3175.4,3173.7,3.94756398]
[1767798497986,2.83938054,3175.4,3173.3,0.817]
[1767798498286,3.66138054,3175.3,3173.3,3.96828118]
[1767798498488,2.83938054,3175.2,3173.3,0.817]
[1767798498688,2.83938054,3175.0,3173.3,0.817]
[1767798498888,3.1495071,3175.1,3173.4,3.01578618]
[1767798499059,0.822,3174.9,3173.5,0.69840769]
[1767798499259,0.31495071,3175.1,3173.5,0.69840769]
[1767798499487,0.822,3175.2,3173.5,3.71419387]
[1767798499890,3.66138054,3175.2,3173.5,3.71419387]
[1767798500203,3.1491097,3175.6,3173.7,3.01578618]
[1767798500497,9.95956233,3175.6,3173.7,3.01578618]
[1767798500709,2.84038054,3175.8,3173.9,3.01578618]
[1767798500907,0.001,3175.8,3174.2,3.27530874]
[1767798501270,0.001,3175.8,3174.2,3.01578618]
[1767798501271,3.1498208,3175.8,3174.2,3.01578618]
[1767798501483,0.001,3175.8,3174.4,3.01578618]
[1767798501693,3.14984928,3175.8,3174.4,3.01578618]
[1767798501894,6.29869856,3175.8,3174.0,0.93173805]
[1767798502202,0.822,3175.7,3174.2,3.01578618]
[1767798502373,0.001,3175.8,3174.2,3.01578618]
[1767798502575,3.1498149,3175.8,3174.2,3.01578618]
[1767798502984,0.001,3175.8,3174.2,6.16617365]
[1767798503172,0.001,3175.8,3174.3,3.27530874]
[1767798503503,0.001,3175.8,3174.5,3.01578618]
[1767798504684,0.001,3175.8,3174.4,0.95760963]
[1767798504880,0.001,3175.8,3174.0,6.16633191]
[1767798504881,5.98829259,3175.7,3174.0,3.01578618]
[1767798505091,9.13720464,3175.7,3174.0,3.83278618]
[1767798505292,2.83938054,3175.6,3174.0,3.15059252]
[1767798505492,2.83938054,3175.5,3173.8,0.002]
[1767798507104,2.83938054,3175.3,3173.8,0.002]
[1767798507800,0.822,3175.2,3173.8,0.002]
[1767798508105,3.66138054,3175.2,3173.8,0.002]
[1767798508883,2.83938054,3175.1,3173.8,0.002]
[1767798509300,6.29921258,3175.0,3173.8,0.002]
[1767798509508,6.82320657,3175.0,3173.8,0.002]
[1767798509717,2.83938054,3174.9,3173.8,0.002]
[1767798510085,0.822,3174.8,3173.8,0.002]
[1767798510296,3.14950685,3175.2,3173.8,0.002]
[1767798510489,9.13838846,3175.2,3173.8,0.002]
[1767798510698,0.99603885,3175.1,3173.8,0.002]
[1767798510900,3.83541939,3175.1,3173.8,0.002]
[1767798511098,3.14931902,3175.3,3173.8,0.002]
[1767798511298,0.822,3175.4,3173.8,0.002]
[1767798512083,3.6274517,3175.4,3173.8,0.002]
[1767798512483,2.8054517,3175.3,3173.8,0.002]
[1767798513209,2.8054517,3175.3,3173.5,0.002]
[1767798513414,2.8054517,3174.8,3173.5,0.002]
[1767798513609,2.8054517,3174.6,3173.5,0.002]
[1767798513924,2.8054517,3174.4,3173.1,1e-08]
[1767798514088,2.8054517,3174.4,3172.8,0.002]
[1767798514484,2.8054517,3174.3,3172.8,0.002]
[1767798514689,2.8054517,3174.1,3172.8,0.002]
[1767798515386,2.8054517,3173.9,3173.8,0.002]
[1767798515586,2.8054517,3173.9,3172.8,0.002]
[1767798515795,2.8054517,3173.9,3171.3,3.15327149]
[1767798516019,3.327,3170.7,3167.7,2.85642951]
[1767798516205,0.16456818,3170.6,3168.3,2.85642951]
[1767798516415,0.822,3170.6,3168.9,2.85642951]
[1767798516720,2.8054517,3170.4,3169.0,0.28564295]
[1767798517025,5.05440128,3170.3,3167.7,2.85642951]